Cogmind - Beta 9.4 @@@ ROGUE MODE // 2020.02.24 @ 03:58:06 Player: Xeram Result: Self-destructed Performance ------------- Evolutions (1) 500 Regions Visited (2) 400 Robots Destroyed (55) 275 Value Destroyed (1293) 1293 Prototype IDs (0) 0 Alien Tech Used (0) 0 Bonus (18) 18 TOTAL SCORE: 2486 Bonus ------- High Alert Combat Kills 18 Cogmind --------- Core Integrity 215/400 Matter 300/300 Energy 250/250 System Corruption 0% Temperature Cool (0) Movement Treading (160) Location -9/Materials Parts ------- > --- POWER (1) -------- Ion Engine > --- PROPULSION (2) --- Light Treads Light Treads > --- UTILITY (4) ------ Large Storage Unit Large Storage Unit Signal Interpreter Targeting Computer > --- WEAPON (2) ------- (None) > --- INVENTORY (16) --- Light Nuclear Core Light Treads Light Treads Assault Rifle Light Assault Rifle Improved Light Cannon Improved Light Cannon Peak State ------------ > --- POWER ------------ Ion Engine > --- PROPULSION ------- Light Treads Light Treads > --- UTILITY ---------- Large Storage Unit Large Storage Unit Signal Interpreter Targeting Computer > --- WEAPON ----------- Improved Light Cannon Improved Light Cannon > --- INVENTORY -------- Light Nuclear Core Light Treads Light Treads Assault Rifle Light Assault Rifle Improved Light Cannon Improved Light Cannon [Rating: 12] Favorites ----------- Power Ion Engine Engine Ion Engine Propulsion Light Treads Treads Light Treads Utility Large Storage Unit Storage Large Storage Unit Processor Targeting Computer Weapon Improved Light Cannon Ballistic Gun Assault Rifle Ballistic Cannon Improved Light Cannon Build | -11 -10 -9 ------- Run | Scr Mat Mat Slots Evolved 2 | . . 2 Power . | . . . Propulsion . | . . . Utility 2 | . . 2 Weapon . | . . . Parts Attached 21 | 6 7 8 Power 2 | 1 1 . Engine 2 | 1 1 . Core . | . . . Reactor . | . . . Propulsion 7 | 2 . 5 Treads 7 | 2 . 5 Leg . | . . . Wheel . | . . . Hover . | . . . Flight . | . . . Utility 6 | 1 3 2 Device . | . . . Storage 4 | 1 2 1 Processor 2 | . 1 1 Hackware . | . . . Protection . | . . . Artifact . | . . . Weapon 6 | 2 3 1 Energy Gun . | . . . Energy Cannon . | . . . Ballistic Gun 3 | 2 1 . Ballistic Cannon 3 | . 2 1 Launcher . | . . . Special Weapon . | . . . Impact Weapon . | . . . Slashing Weapon . | . . . Piercing Weapon . | . . . Special Melee Weapon . | . . . Unidentified Prototypes . | . . . Parts Lost 7 | . 2 5 Power 1 | . 1 . Propulsion 3 | . . 3 Utility . | . . . Weapon 3 | . 1 2 Highest Loss Streak 2 | . 1 2 Average Slot Usage (%) 97 | . 96 99 Engine 12 | . 13 11 Treads 24 | . 28 21 Storage 17 | . 14 22 Processor 15 | . 10 22 Ballistic Gun 13 | . 26 . Ballistic Cannon 11 | . 1 21 Naked Turns . | . . . Heaviest Build 45 | 12 29 45 Greatest Support 40 | 40 40 40 Greatest Overweight (x) 2 | . . 2 Average Overweight (x) . | . . 1 Largest Inventory Capacity 16 | 6 10 16 Average Capacity 11 | 5 7 16 Most Carried 9 | 2 9 8 Average Carried 5 | 1 5 5 Final Capacity 16 | 6 10 16 Final Carried 9 | 2 9 7 Class Distribution -------------------- 100% | Mutant Dominant Class ---------------- Mutant | -10/Materials Mutant | -9/Materials Resources | -11 -10 -9 ----------- Run | Scr Mat Mat Matter Collected 1227 | 206 351 670 Remotely . | . . . Salvage Created 1556 | . 699 857 Parts 96 | . 40 56 Haulers Intercepted 3 | . 1 2 Recyclers Shooed 3 | . . 3 Parts Field Recycled . | . . . Retrieved Matter . | . . . Parts Self-Destructed . | . . . Prevented . | . . . Kills | -11 -10 -9 ------- Run | Scr Mat Mat Combat Hostiles Destroyed 41 | . 16 25 Guns 16 | . 16 . Cannons 25 | . . 25 Classes Destroyed 8 | . 5 3 Worker 3 | . 1 2 Builder 2 | . 2 . Hauler 3 | . 1 2 Recycler 3 | . . 3 Watcher 3 | . . 3 Swarmer 12 | . 3 9 Grunt 26 | . 13 13 Sentry 3 | . . 3 Best Kill Streak 11 | . 6 11 Combat Bots Only 7 | . 5 7 Max Kills in Single Turn 2 | . 2 2 Gunslinging . | . . . Exploded . | . . . Melee . | . . . Uniques/NPCs Destroyed . | . . . Combat | -11 -10 -9 -------- Run | Scr Mat Mat Damage Taken 1401 | . 542 859 Core 219 | . 34 185 Absorbed by Shields . | . . . Core Remaining (%) 93 | 100 86 . Volleys Fired 125 | . 50 75 Largest 2 | . 2 2 Hottest 78 | . 40 78 Shots Fired 250 | . 100 150 Gun 100 | . 100 . Cannon 150 | . . 150 Launcher . | . . . Special . | . . . Kinetic 250 | . 100 150 Thermal . | . . . Explosive . | . . . Electromagnetic . | . . . Robot Hit Streak 16 | . 16 11 Robot Miss Streak 5 | . 1 5 Penetration Max . | . . . Secondary Targets 3 | . 3 . Max Gunslinging Chain 1 | . 1 . Shots Hit Robots 166 | . 81 85 Core Hits 68 | . 32 36 Critical Hits 2 | . . 2 Critical Kills . | . . . Critical Parts Destroyed 2 | . . 2 Melee Attacks . | . . . Impact . | . . . Slashing . | . . . Piercing . | . . . Sneak Attacks . | . . . Combat Hostiles . | . . . Follow-up Attacks . | . . . Damage Inflicted 2707 | . 968 1739 Guns 959 | . 959 . Cannons 1711 | . . 1711 Explosions . | . . . Melee . | . . . Ramming 37 | . 9 28 Kinetic 2670 | . 959 1711 Thermal . | . . . Explosive . | . . . Electromagnetic . | . . . Impact . | . . . Slashing . | . . . Piercing . | . . . Highest Corruption 2 | . 2 . Average Corruption 2 | . 2 . Corruption Purged . | . . . Effects 8 | . 8 . Message Errors 3 | . 3 . Energy Discharges 1 | . 1 . Data Loss (minor) 2 | . 2 . Targeting Errors 2 | . 2 . Overload Shots . | . . . Overflow Damage 8 | . . 8 Projectiles 8 | . . 8 Explosions . | . . . Melee . | . . . Knockbacks 17 | . . 17 Impact . | . . . Kinetic 17 | . . 17 Secondary . | . . . Self-Inflicted Damage . | . . . Shots . | . . . Rammed 12 | . 6 6 Targets Rammed 13 | . 6 7 Kicked . | . . . Crushed 1 | . . 1 Highest Temperature 111 | . 12 111 Average Temperature 24 | . 7 26 Received Heat Transfer 444 | . 222 222 Siege Activations . | . . . Robots Corrupted . | . . . Combat Hostiles . | . . . Parts Fried . | . . . Impact Corruptions . | . . . Robots Melted . | . . . Combat Hostiles . | . . . Parts Melted . | . . . Heat Transferred . | . . . Parts Sabotaged . | . . . Parts Stolen . | . . . Parts Stripped . | . . . Power Chain Reactions . | . . . Missiles Intercepted . | . . . Alert | -11 -10 -9 ------- Run | Scr Mat Mat Peak Influence 493 | . 217 493 Average Influence 142 | . 76 227 Maximum Alert Level 2 | . 1 2 Low Security (%) 65 | 100 93 32 Level 1 30 | . 6 59 Level 2 3 | . . 8 Level 3 . | . . . Level 4 . | . . . Level 5 . | . . . High Security . | . . . Max Security . | . . . Squads Dispatched 11 | . 5 6 Investigation 2 | . 1 1 Extermination . | . . . Reinforcement 9 | . 4 5 Assault . | . . . Garrison . | . . . Intercept . | . . . Construction Impeded 1 | . . 1 Haulers Reinforced . | . . . Stealth | -11 -10 -9 --------- Run | Scr Mat Mat Distress Signals 5 | . 1 4 Communications Jammed . | . . . Distress Signals . | . . . Times Spotted 70 | . 26 44 Peak Tracking Total 6 | . 6 6 Tactical Retreats 3 | . . 3 Traps | -11 -10 -9 ------- Run | Scr Mat Mat Traps Triggered 3 | . 2 1 Indirectly . | . . . Trap Hack Attempts . | . . . Triggered . | . . . Disarmed . | . . . Reprogrammed . | . . . Reused . | . . . Traps Extracted . | . . . Installed . | . . . Triggered . | . . . Machines | -11 -10 -9 ---------- Run | Scr Mat Mat Machines Disabled 3 | . . 3 Max in Single Turn 1 | . . 1 Machines Sabotaged . | . . . Garrisons Compromised . | . . . Overloaded Fab Kills . | . . . Fab Network Shutdowns . | . . . Hacking | -11 -10 -9 --------- Run | Scr Mat Mat Machines Accessed 2 | . 1 1 Terminals 2 | . 1 1 Fabricators . | . . . Repair Stations . | . . . Recycling Units . | . . . Scanalyzers . | . . . Garrison Access . | . . . Total Hacks 8 | . 1 7 Successful 2 | . . 2 Failed 6 | . 1 5 Catastrophic 2 | . 1 1 Database Lockouts . | . . . Manual 8 | . 1 7 Terminals 8 | . 1 7 Fabricators . | . . . Repair Stations . | . . . Recycling Units . | . . . Scanalyzers . | . . . Garrison Access . | . . . Terminal Hacks 2 | . . 2 Unreport Threat 2 | . . 2 Fabricator Hacks . | . . . Repair Station Hacks . | . . . Recycling Unit Hacks . | . . . Scanalyzer . | . . . Garrison Access Hacks . | . . . Unauthorized Hacks . | . . . Terminals . | . . . Fabricators . | . . . Repair Stations . | . . . Recycling Units . | . . . Scanalyzers . | . . . Garrison Access . | . . . Data Cores Recovered . | . . . Used . | . . . Hacking Detections 2 | . 1 1 Full Trace Events . | . . . Feedback Events . | . . . Feedback Blocked . | . . . Robot Schematics Acquired . | . . . Robots Built . | . . . Matter . | . . . Time . | . . . Total Robot Build Rating . | . . . Part Schematics Acquired . | . . . Parts Built . | . . . Matter . | . . . Time . | . . . Total Part Build Rating . | . . . Parts Repaired . | . . . Time . | . . . Parts Recycled . | . . . Recycled Matter . | . . . Retrieved Matter . | . . . Retrieved Components . | . . . Parts Scanalyzed . | . . . Part Schematics Acquired . | . . . Parts Damaged . | . . . Bothacking | -11 -10 -9 ------------ Run | Scr Mat Mat Used RIF Installer . | . . . Robots Hacked . | . . . Non-combat . | . . . Combat . | . . . Robot Hacks Applied . | . . . Relay Couplers Released . | . . . Robots Rewired . | . . . Allies Hacked . | . . . Hacks Repelled . | . . . Allies | -11 -10 -9 -------- Run | Scr Mat Mat Total Allies . | . . . Largest Group . | . . . Highest-Rated Group . | . . . Highest-Rated Ally . | . . . Total Orders . | . . . Ally Attacks . | . . . Total Damage . | . . . Kills . | . . . Allies Corrupted . | . . . Allies Melted . | . . . Intel | -11 -10 -9 ------- Run | Scr Mat Mat Robot Analysis Total . | . . . Derelict Logs Recovered . | . . . Drone Launches . | . . . Drone Recoveries . | . . . Exploration | -11 -10 -9 ------------- Run | Scr Mat Mat Turns Passed 1695 | 67 854 774 Spaces Moved 726 | 37 407 282 Core 2 | 2 . . Treads 724 | 35 407 282 Legs . | . . . Wheels . | . . . Hover . | . . . Flight . | . . . Fastest Speed 50 | 50 160 180 Average Speed 167 | 154 160 180 Slowest Speed 200 | 160 160 200 Overloaded Moves . | . . . Propulsion Burnouts . | . . . Robots Hopped . | . . . Cave-ins Triggered . | . . . Exploration Rate (%) 42 | 4 86 38 Regions Visited 2 Branch Regions . Pre-discovered Areas . | . . . Known Exits Taken . | . . . Unknown Exits Taken 2 | 1 1 . Scrap Searched . | . . . Spaces Dug . | . . . Terrain Destroyed 5 | . . 5 Melee . | . . . Projectile 5 | . . 5 AOE . | . . . Actions | -11 -10 -9 --------- Run | Scr Mat Mat Total 945 | 44 512 389 Wait 44 | . 27 17 Move 724 | 36 406 282 Hop . | . . . Pick Up 12 | 2 10 . Fast Attach 9 | 6 2 1 Attach 7 | . 3 4 Detach 2 | . 2 . Swap 5 | . 2 3 Drop 4 | . 4 . Fire 125 | . 50 75 Melee . | . . . Ram . | . . . Kick . | . . . Crush 13 | . 6 7 Escape Stasis . | . . . Rewire . | . . . Trap . | . . . Miscellaneous . | . . . Route ------- -11/Scrapyard -10/Materials (discovered 5 exits: *Mat x3 / [*Min x2]) -9/Materials (discovered 2 exits: *Min x2) History --------- Turn | Location | Event 45 | -11/Scrapyard | Discovered new exit (range 14) 68 | -11/Scrapyard | Entered Materials 308 | -10/Materials | Discovered new exit (range 6) 313 | -10/Materials | Build established: Mutant 327 | -10/Materials | Discovered new exit (range 14) 620 | -10/Materials | Discovered new exit (range 10) 675 | -10/Materials | Discovered new exit (range 15) 914 | -10/Materials | Discovered new exit (range 5) 922 | -10/Materials | Entered another Materials area 922 | -9/Materials | Evolved 2 slots: Utility x2 1252 | -9/Materials | Discovered new exit (range 4) 1257 | -9/Materials | Identified exit to Mines 1493 | -9/Materials | Discovered exit to Mines (range 10) 1498 | -9/Materials | Destroyed 7 combat bots 1696 | -9/Materials | Self-destructed Last Messages --------------- 01593_ U-05 Engineer builds a Wall. 01600_ K-01 Serf collects debris. 01610_ R-06 Scavenger destroyed. 01611_ K-01 Serf collects debris. 01613_ W-16 Scout destroyed. 01615_ K-01 Serf collects debris. 01616_ A-02 Transporter destroyed. 01618_ K-01 Serf collects debris. 01624_ Recycling Unit disabled. 01624_ Lgt. Ion Engine tumbles out of recycling unit. 01625_ K-01 Serf collects debris. 01627_ R-06 Scavenger destroyed. 01630_ K-01 Serf collects debris. 01635_ Acquired 88 matter. 01637_ K-01 Serf collects debris. 01642_ Acquired 49 matter. 01647_ K-01 Serf collects debris. 01647_ Acquired 33 matter. 01660_ K-01 Serf collects debris. 01685_ Imp. Light Cannon destroyed. Map ----- +----------------------------------------------------+ | ???????????????# #?????????????????????????????? | | ???????????????# #?????????????????????????????? | | ###????????????# #?????????????????????????????? | | #????????????# #?????????????????????????????? | | #????????????# #?????????????????????????????? | | #????????????# #?????????????????????????????? | | #????????????# #?????????????????????????????? | | " #????????????# #?????????????????????????????? | | " #????????????# #?????????????????????????????? | | " #????????????# ##????????????????????????????? | | #########???## ##????????????????????????????? | | +## !##### #????????????????????????????? | | !%! #????????????????????????????? | | > *!! *=[ #????????????????????????????? | | !%! !*%= ! !#???####?????????????????????? | | ## ##### #??#"""#?????????????????????? | | ## "|"|" #???## u#####"T"#####+##??????????????? | | ##""|"|""#????# u #??????????????? | | ##########????# +??????????????? | | #?????????????# #??????????????? | | ########???????# """ """ #??????????????? | | * #?????# """ """ #??????????????? | | #??"" # """ """ ##?????????????? | | """""??????"" + * #?????????????? | | """""?????????# "Y sss #?????????????? | | ?"""""?????????# """ !@ s +?????????????? | | ???#???????????#######+####### #?????????????? | | ##?????????????????? ????# #?????????????? | | #?????????????????# ""??# #?????????????? | | #?????????????????# """## ????????????? | | #?????????????????# """## ??????????? | | #?????????????????# ## ????????? | | #?????????????????# """## ???????? | | #?????????????????# """#### ???????? | | #?????????????????# """???? ##### ??????? | | #?????????????????# ????? #????????????? | | #?????????????????#######?????? #????????????? | | ##?????????????????????????????? #????????????? | | ????####????########???????????? ????????????? | | ?? #????# #?????????????##??????????????? | | "" #????#! """ #?????????????????????????????? | | T" #??### """ #?????????????????????????????? | | "" #??? + """ #???????????#+#????+##????????? | | ?? #????# #???????????# #????????? | | #?#?######### #???????????# """" #????????? | | ####### ###+"######????????# """" #????????? | | ![%!=[ #????????# """" #????????? | | =[==!=* #????????# #????????? | | =*!* #????????#! ![ #????????? | | ####### ####### #????????# ![ +????????? | +----------------------------------------------------+ Best States ------------- Heat Dissipation 28 Energy Generation 10 Energy Capacity 250 Matter Stores 300 Matter Capacity 300 Sight Range 16 Terrain Scan Density 10 Evasion (%) 40 Targeting Accuracy 5 Recoil Reduction 2 Item Schematics ----------------- None Robot Schematics ------------------ None Fabricated ------------ Nothing Alien Tech Used ----------------- None Achievements -------------- None Challenges ------------ None Game ------ Seed HelicalHelicalDoublenader Manual? 0 Play Time 00:18:21 Cumulative 14.1 hours Start 2020.02.24 @ 03:43:21 End 2020.02.24 @ 03:58:06 Sessions 1 Manual Loads 0 Difficulty Rogue Special Mode None Game No. 17 Rogue 17 Adventurer 0 Explorer 0 Win Type - Total 0 Types 0/0/0/0/0/0/0 Lore% 12 Gallery% 24 Achievement% 23 Wizard Run 0 Options --------- ASCII 0 Keyboard 1 Movement Numpad Keybinds 0 Fullscreen 1 Font 18/SmallcapsGlow Map View 76x50 Tactical HUD 1 Map Filters NONE Filters NONE Steam 1 RUN: 15ea743d-3e6e-4726-bd5c-9a28dd8d91a4